bitfinex-derivatives/quotes_SOLF0:USTF0_20260126
["timestamp","ask_amount","ask_price","bid_price","bid_amount"]
[1769392213594,2.19713345,121.85,121.78,19.53093684]
[1769392214192,2.19713345,121.85,121.78,17.33380339]
[1769392215083,2.19713345,121.84,121.78,17.33380339]
[1769392216286,114.9964,121.89,121.78,17.33380339]
[1769392216491,2.19713345,121.86,121.78,19.53093684]
[1769392216893,2.19713345,121.86,121.8,17.33380339]
[1769392218600,2.19713345,121.87,121.8,17.33380339]
[1769392218801,2.19713345,121.87,121.8,19.53093684]
[1769392220497,2.19713345,121.88,121.8,19.53093684]
[1769392220699,2.19713345,121.87,121.8,19.53093684]
[1769392222692,2.19713345,121.86,121.8,17.33380339]
[1769392223598,2.19713345,121.84,121.8,17.33380339]
[1769392226303,7.3948,121.85,121.78,17.33380339]
[1769392226600,2.19713345,121.84,121.78,17.33380339]
[1769392226802,7.3926,121.89,121.8,16.23523667]
[1769392227096,114.9744,121.91,121.72,14.8570385]
[1769392227097,2.19713345,121.88,121.82,16.23523667]
[1769392227303,2.19713345,121.87,121.82,16.23523667]
[1769392227498,2.19713345,121.88,121.82,16.23523667]
[1769392230196,2.19713345,121.87,121.82,16.23523667]
[1769392233101,2.19713345,121.88,121.82,16.23523667]
[1769392235212,2.19713345,121.87,121.82,16.23523667]
[1769392235612,2.19640324,121.87,121.82,16.23523667]
[1769392235817,2.19640324,121.88,121.82,16.23523667]
[1769392237215,7.3924,121.89,121.82,16.23523667]
[1769392237521,2.19640324,121.88,121.82,16.23523667]
[1769392239107,7.3912,121.91,121.84,16.23523667]
[1769392239405,114.9497,121.94,121.84,16.23523667]
[1769392239708,2.19640324,121.89,121.84,16.23523667]
[1769392240114,2.19640324,121.9,121.84,16.23523667]
[1769392241515,2.19640324,121.88,121.84,16.23523667]
[1769392242412,2.19640324,121.87,121.84,16.23523667]
[1769392242620,2.19640324,121.87,121.8,2.19640324]
[1769392242807,2.19640324,121.87,121.79,2.19640324]
[1769392243011,11.57129973,121.89,121.78,9.59490324]
[1769392243012,2.19640324,121.86,121.78,9.59490324]
[1769392243512,7.3931,121.88,121.79,2.19640324]
[1769392243716,2.19640324,121.87,121.79,2.19640324]
[1769392244020,2.19640324,121.87,121.79,9.59440324]
[1769392244621,2.19640324,121.87,121.8,13.23266784]
[1769392245119,2.19640324,121.86,121.8,13.23266784]
[1769392246412,2.19640324,121.85,121.8,13.23266784]
[1769392246721,2.19640324,121.86,121.8,13.23266784]
[1769392247020,9.59000324,121.87,121.8,13.23266784]
[1769392247323,2.19640324,121.86,121.8,13.23266784]
[1769392247717,9.59000324,121.87,121.8,13.23266784]
[1769392248916,2.19640324,121.88,121.81,2.19640324]
[1769392249221,9.58890324,121.89,121.82,13.23266784]
[1769392249421,2.19640324,121.88,121.82,13.23266784]
[1769392250720,2.19640324,121.87,121.82,13.23266784]
[1769392251719,2.19640324,121.86,121.82,13.23266784]
[1769392252622,2.19640324,121.87,121.82,13.23266784]
[1769392254128,2.19640324,121.86,121.82,13.23266784]
[1769392254929,11.86540988,121.89,121.82,13.23266784]
[1769392255128,2.19640324,121.88,121.82,13.23266784]
[1769392256122,19.25770988,121.89,121.82,13.23266784]
[1769392256318,2.19640324,121.88,121.82,13.23266784]
[1769392257830,2.19640324,121.87,121.82,13.23266784]
[1769392258626,2.19640324,121.86,121.82,13.23266784]
[1769392259030,7.3929,121.88,121.82,13.23266784]
[1769392259219,2.19640324,121.87,121.82,13.23266784]
[1769392260332,0.05368772,121.86,121.82,13.23266784]
[1769392261529,2.25009096,121.86,121.82,13.23266784]
[1769392261926,2.19640324,121.87,121.82,13.23266784]
[1769392262231,12.20855627,121.92,121.79,2.19640324]
[1769392262232,2.19640324,121.89,121.84,13.23266784]
[1769392263031,2.19640324,121.9,121.84,13.23266784]
[1769392263230,2.19640324,121.89,121.84,13.23266784]
[1769392263527,2.19640324,121.89,121.85,13.63262962]
[1769392264228,2.19640324,121.88,121.85,13.63262962]
[1769392264422,2.19640324,121.87,121.83,13.57840923]
[1769392265033,2.25470281,121.88,121.83,13.57840923]
[1769392267126,2.19640324,121.87,121.83,13.57840923]
[1769392269735,2.19640324,121.86,121.8,13.57840923]
[1769392269934,2.19640324,121.87,121.8,13.57840923]
[1769392270233,2.19640324,121.88,121.81,15.77481247]
[1769392270534,2.19640324,121.87,121.81,13.57840923]
[1769392271429,0.0569169,121.85,121.81,13.57840923]
[1769392271630,2.19640324,121.87,121.81,13.57840923]
[1769392272032,2.19640324,121.87,121.82,13.63831413]
[1769392272737,2.19640324,121.88,121.82,13.63831413]
[1769392273736,2.19640324,121.87,121.82,13.63831413]
[1769392275742,2.19640324,121.86,121.82,13.63831413]
[1769392276739,2.19640324,121.87,121.82,13.63831413]
[1769392279642,2.19640324,121.89,121.82,13.63831413]
[1769392282545,9.58870324,121.89,121.82,13.63831413]
[1769392282842,2.19640324,121.89,121.83,14.37063978]
[1769392283046,8.30526379,121.91,121.83,16.56704302]
[1769392283239,2.19640324,121.9,121.83,16.56704302]
[1769392283440,2.19640324,121.89,121.83,16.56704302]
[1769392283946,2.19640324,121.89,121.85,14.4261481]
[1769392286750,2.19640324,121.9,121.85,14.4261481]
[1769392288442,2.19640324,121.89,121.85,14.4261481]
[1769392290847,2.19640324,121.9,121.85,14.4261481]
[1769392291147,2.19640324,121.89,121.85,14.4261481]
[1769392293241,2.19640324,121.88,121.85,0.05550832]
[1769392293438,2.19640324,121.87,121.83,14.29707047]
[1769392293844,2.19640324,121.88,121.83,14.29707047]
[1769392294847,2.19640324,121.85,121.81,14.29707047]
[1769392295552,2.19722884,121.85,121.81,14.29707047]
[1769392295756,0.05322367,121.84,121.81,14.29707047]
[1769392295952,2.19722884,121.85,121.81,14.29707047]
[1769392296146,2.19722884,121.86,121.81,14.29707047]
[1769392296345,2.19722884,121.86,121.81,14.35441232]
[1769392298652,9.59142884,121.86,121.81,14.35441232]
[1769392298855,2.19722884,121.85,121.81,14.35441232]
[1769392300453,2.19722884,121.86,121.81,14.35441232]
[1769392300657,2.19722884,121.87,121.81,14.35441232]
[1769392301658,15.89614559,121.87,121.81,14.35441232]
[1769392301861,2.19722884,121.86,121.81,14.35441232]
[1769392302755,21.09241675,121.87,121.81,14.35441232]
[1769392302956,2.19722884,121.86,121.81,14.35441232]
[1769392303154,2.19722884,121.85,121.81,14.35441232]
[1769392303353,2.19722884,121.84,121.81,14.35441232]
[1769392304063,2.19722884,121.85,121.81,14.35441232]
[1769392305155,2.19722884,121.84,121.81,14.35441232]
[1769392306359,2.19722884,121.84,121.79,14.29707047]
[1769392306561,2.25178263,121.84,121.79,14.29707047]
[1769392310554,2.19722884,121.86,121.79,16.49429931]
[1769392310956,9.59142884,121.86,121.81,14.29707047]
[1769392311760,7.3942,121.86,121.81,14.29707047]
[1769392311964,9.59142884,121.86,121.81,14.29707047]
[1769392312963,2.19722884,121.85,121.81,14.29707047]
[1769392314163,9.59142884,121.86,121.81,14.29707047]
[1769392316361,2.19722884,121.85,121.81,14.29707047]
[1769392316760,2.19722884,121.84,121.81,14.29707047]
[1769392318862,2.19722884,121.85,121.81,14.29707047]
[1769392319061,2.19722884,121.87,121.81,14.29707047]
[1769392319957,2.19722884,121.89,121.84,14.29707047]
[1769392320366,284.90804559,121.9,121.84,14.29707047]
[1769392320961,2.19722884,121.91,121.84,16.49429931]
[1769392321164,23.28694559,121.92,121.84,16.49429931]
[1769392321360,23.28694559,121.92,121.86,14.35732845]
[1769392322365,2.19722884,121.91,121.86,14.35732845]
[1769392323566,21.08971675,121.92,121.84,14.38964059]
[1769392323567,2.19722884,121.89,121.84,14.38964059]
[1769392323765,2.19722884,121.88,121.84,14.38964059]
[1769392324068,2.19722884,121.88,121.82,14.38964059]
[1769392324571,15.87203872,121.89,121.82,16.58686943]
[1769392324867,128.61910988,121.94,121.84,16.58686943]
[1769392325069,9.58772884,121.92,121.84,16.58686943]
[1769392325377,2.19722884,121.91,121.84,14.44922578]
[1769392325565,2.19722884,121.9,121.84,14.44922578]
[1769392325765,2.19722884,121.9,121.84,14.38964059]
[1769392326066,2.19722884,121.91,121.84,16.58686943]
[1769392326469,2.19722884,121.91,121.86,0.06280178]
[1769392327369,2.19722884,121.91,121.86,14.45244237]
[1769392327570,2.19722884,121.9,121.86,14.45244237]
[1769392332170,2.19722884,121.89,121.86,14.45244237]
[1769392332369,2.25195681,121.89,121.84,14.38964059]
[1769392333869,0.05472797,121.89,121.84,14.38964059]
[1769392334376,0.05472797,121.89,121.84,16.58686943]
[1769392334774,2.19722884,121.91,121.84,16.58686943]
[1769392334974,9.58802884,121.92,121.86,14.38964059]
[1769392335370,13.67480988,121.93,121.86,16.58686943]
[1769392335574,7.3896,121.94,121.88,16.58686943]
[1769392336169,7.3896,121.94,121.9,0.06309626]
[1769392336773,9.58682884,121.94,121.9,0.06309626]
[1769392337672,9.58682884,121.94,121.88,14.38964059]
[1769392337874,0.05708063,121.93,121.88,14.38964059]
[1769392341278,2.25430947,121.93,121.88,14.38964059]
[1769392345173,2.19722884,121.92,121.88,14.38964059]
[1769392345384,2.19722884,121.9,121.86,14.99079298]
[1769392346279,0.06034117,121.89,121.86,14.99079298]
[1769392349588,0.06034117,121.89,121.84,14.99079298]
[1769392349589,2.25757001,121.89,121.84,14.99079298]
[1769392349887,2.19722884,121.88,121.84,14.99079298]
[1769392350480,0.05409474,121.87,121.84,14.99079298]
[1769392351988,9.58952884,121.89,121.84,14.99079298]
[1769392352182,9.58952884,121.89,121.84,15.0431969]
[1769392353190,2.19722884,121.9,121.84,15.0431969]
[1769392353795,9.58892884,121.9,121.84,15.0431969]
[1769392356894,2.19722884,121.91,121.84,15.0431969]
[1769392357088,7.3905,121.92,121.86,14.85760432]
[1769392357288,16.5561275,121.93,121.86,14.85760432]
[1769392357794,16.55337631,121.93,121.86,14.85760432]
[1769392357987,2.19447765,121.92,121.86,14.85760432]
[1769392358388,2.19447765,121.92,121.88,0.05818008]
[1769392358690,2.19447765,121.93,121.88,14.9157844]
[1769392359190,14.35889866,121.95,121.88,14.9157844]
[1769392359493,2.19447765,121.93,121.88,14.9157844]
[1769392360293,2.19447765,121.94,121.88,14.9157844]
[1769392360683,2.19447765,121.96,121.88,17.11026205]
[1769392360882,2.19447765,121.95,121.88,17.11026205]
[1769392361392,2.19447765,121.95,121.88,17.05208197]
[1769392361595,2.19447765,121.95,121.9,14.9118873]
[1769392365498,2.19447765,121.94,121.9,14.9118873]
[1769392366594,2.19447765,121.92,121.88,14.85760432]
[1769392366801,2.19447765,121.91,121.88,14.85760432]
[1769392367192,2.19447765,121.92,121.88,14.85760432]
[1769392367599,2.19447765,121.93,121.88,14.85760432]
[1769392368696,21.74709866,121.96,121.88,14.85760432]
[1769392368896,2.19447765,121.96,121.88,17.05208197]
[1769392369698,2.19447765,121.95,121.88,17.05208197]
[1769392370104,21.74599866,121.98,121.88,14.85760432]
[1769392370303,7.3871,121.98,121.9,17.05208197]
[1769392370494,2.19447765,121.97,121.9,17.05208197]
[1769392370900,9.58157765,121.98,121.9,17.05208197]
[1769392371303,2.19447765,121.97,121.9,17.05208197]
[1769392371500,16.55337631,121.99,121.92,14.85760432]
[1769392372105,2.19447765,121.99,121.92,17.05208197]
[1769392372708,2.19447765,122.01,121.94,14.85760432]
[1769392372908,2.19447765,122.02,121.96,14.85760432]
[1769392373110,16.55337631,122.03,121.96,14.85760432]
[1769392373409,2.19447765,122.01,121.96,14.85760432]
[1769392374011,2.19447765,122.0,121.96,14.85760432]
[1769392374201,2.19447765,121.98,121.94,14.85760432]
[1769392375412,2.19447765,121.99,121.94,14.85760432]
[1769392377111,21.74409866,122.01,121.94,14.85760432]
[1769392377112,2.19447765,121.98,121.94,14.85760432]
[1769392377810,2.19447765,121.99,121.94,14.85760432]
[1769392378011,2.19447765,122.0,121.94,14.85760432]
[1769392378402,0.06293738,121.98,121.95,0.06064399]
[1769392379513,2.19447765,121.99,121.95,14.91824831]
[1769392379906,2.19447765,122.0,121.95,14.91824831]
[1769392380415,2.19447765,122.01,121.95,14.91824831]
[1769392380614,2.19447765,122.02,121.95,17.11272596]
[1769392380913,2.19447765,122.02,121.95,17.05208197]
[1769392381316,2.19447765,122.02,121.97,14.91047424]
[1769392382104,2.19447765,122.03,121.97,14.91047424]
[1769392382612,2.19447765,122.02,121.97,14.91047424]
[1769392383016,2.19447765,122.03,121.97,14.91047424]
[1769392383215,2.19447765,122.04,121.97,14.91047424]
[1769392383617,2.19447765,122.04,121.98,14.51777818]
[1769392383917,2.19447765,122.04,121.99,14.57922371]
[1769392384112,2.19447765,122.05,121.99,14.57922371]
[1769392384505,2.19447765,122.04,121.99,14.57922371]
[1769392385313,2.19447765,122.03,121.99,14.57922371]
[1769392387922,2.19447765,122.02,121.99,0.06144553]
[1769392388119,2.19447765,122.01,121.96,14.51777818]
[1769392388516,2.19447765,122.02,121.96,14.51777818]
[1769392389120,2.19447765,122.03,121.96,14.51777818]
[1769392389517,2.19447765,122.03,121.98,14.57372001]
[1769392390416,2.19447765,122.04,121.98,14.57372001]
[1769392391918,2.19447765,122.03,121.98,14.57372001]
[1769392392118,2.19447765,122.03,121.98,14.51777818]
[1769392392818,2.19447765,122.05,122.0,14.51777818]
[1769392393812,2.19447765,122.05,122.01,14.57072358]
[1769392394319,2.19447765,122.04,122.01,14.57072358]
[1769392395924,22.23342257,122.07,122.01,14.57072358]
[1769392396126,2.19447765,122.05,122.01,14.57072358]
[1769392397825,21.37136027,122.09,122.01,14.57072358]
[1769392398124,2.19447765,122.11,122.03,16.8672339]
[1769392398422,2.19447765,122.1,122.04,14.67275625]
[1769392398929,2.19447765,122.1,122.06,14.73404729]
[1769392399227,2.153e-05,122.13,122.06,14.73404729]
[1769392399423,2.19449918,122.13,122.06,16.92852494]
[1769392399828,2.19449918,122.13,122.06,22.11554729]
[1769392400023,2.19449918,122.13,122.07,14.67275625]
[1769392400330,2.153e-05,122.13,122.07,16.8672339]
[1769392400527,2.153e-05,122.13,122.08,14.67275625]
[1769392400727,128.67596027,122.22,122.1,14.67275625]
[1769392400921,2.19447765,122.19,122.12,14.67275625]
[1769392401231,128.67596027,122.22,122.12,14.67275625]
[1769392401526,2.19447765,122.19,122.12,14.67275625]
[1769392401827,2.19447765,122.2,122.14,14.67275625]
[1769392402029,2.19447765,122.2,122.16,14.72955127]
[1769392402733,7.3718,122.23,122.16,14.72955127]
[1769392403123,136.03596027,122.23,122.16,14.72955127]
[1769392403318,2.19447765,122.21,122.16,14.72955127]
[1769392403525,2.19447765,122.22,122.16,14.72955127]
[1769392403722,271.23096027,122.26,122.16,14.72955127]
[1769392403723,2.19447765,122.23,122.16,14.72955127]
[1769392403923,271.23096027,122.26,122.16,16.8672339]
[1769392404130,2.19447765,122.23,122.16,16.8672339]
[1769392404535,2.19447765,122.23,122.2,0.05176941]
[1769392405029,271.23096027,122.26,122.2,0.05176941]
[1769392405427,13.99096027,122.28,122.2,14.72452566]
[1769392405633,2.19447765,122.26,122.2,14.72452566]
[1769392405828,13.99096027,122.28,122.2,14.72452566]
[1769392406033,2.19447765,122.26,122.2,14.67275625]
[1769392406228,13.99096027,122.28,122.2,14.67275625]
[1769392406428,13.99096027,122.3,122.23,14.73152292]
[1769392406723,2.19447765,122.3,122.23,14.73152292]
[1769392406932,2.19447765,122.3,122.23,14.67275625]
[1769392407132,13.99096027,122.32,122.23,14.67275625]
[1769392407429,271.61096027,122.34,122.25,14.72615367]
[1769392407832,5.00553634,122.36,122.26,14.67275625]
[1769392407833,18.99649661,122.36,122.26,14.67275625]
[1769392408024,13.99096027,122.36,122.26,14.67275625]
[1769392408229,372.2102,122.38,122.28,14.67275625]
[1769392408428,284.03909661,122.38,122.3,14.72812124]
[1769392408625,18.99649661,122.41,122.3,14.72812124]
[1769392408828,128.49436027,122.41,122.3,14.72812124]
[1769392409031,13.99096027,122.41,122.31,14.67275625]
[1769392409637,13.99096027,122.41,122.34,0.05604545]
[1769392409838,18.99649661,122.4,122.34,0.05604545]
[1769392410137,133.50999661,122.4,122.34,0.05604545]
[1769392410338,18.99649661,122.4,122.34,0.05604545]
[1769392411440,5.00553634,122.42,122.34,14.7288017]
[1769392411733,151.61096027,122.43,122.31,14.67275625]
[1769392411734,18.99649661,122.4,122.31,14.67275625]
[1769392412437,18.99649661,122.4,122.34,0.05504826]
[1769392412732,0.06146637,122.37,122.31,14.67275625]
[1769392413133,18.99649661,122.42,122.31,14.67275625]
[1769392413335,133.49089661,122.42,122.31,14.67275625]
[1769392413638,14.2837553,122.41,122.31,14.67275625]
[1769392414333,14.2837553,122.41,122.32,14.43731339]
[1769392414534,14.2837553,122.41,122.35,0.05303312]
[1769392415438,19.28929164,122.41,122.35,0.05303312]
[1769392415640,14.2837553,122.4,122.35,0.05303312]
[1769392416035,151.9037553,122.43,122.35,0.05303312]
[1769392416340,156.90929164,122.43,122.35,14.49034651]
[1769392416536,156.90929164,122.43,122.35,14.43731339]
[1769392416736,14.2837553,122.42,122.33,14.43731339]
[1769392416946,14.2837553,122.42,122.38,0.03366369]
[1769392417128,19.28929164,122.41,122.33,14.43731339]
[1769392417330,0.06306114,122.39,122.33,14.43731339]
[1769392417831,14.2837553,122.44,122.34,14.43731339]
[1769392418639,136.1190553,122.44,122.34,14.43731339]
[1769392419044,19.28358592,122.43,122.38,0.05298975]
[1769392419436,0.0519751,122.4,122.34,14.43731339]
[1769392421439,14.3357304,122.4,122.34,14.43731339]
[1769392422139,19.28358592,122.39,122.3,14.43731339]
[1769392422344,14.2837553,122.39,122.3,14.43731339]
[1769392422743,4.99983062,122.36,122.3,14.43731339]
[1769392422947,19.28358592,122.34,122.25,14.43731339]
[1769392423144,128.8724553,122.33,122.25,14.43731339]
[1769392423443,14.2837553,122.31,122.22,232.45583897]
[1769392423644,0.05243889,122.3,122.23,14.43731339]
[1769392425440,14.33619419,122.3,122.23,14.43731339]
[1769392425845,0.05243889,122.3,122.23,14.43731339]
[1769392426243,114.5846,122.34,122.23,14.43731339]
[1769392426244,4.99983062,122.34,122.26,14.43731339]
[1769392427548,19.28358592,122.3,122.23,14.43731339]
[1769392428137,0.0629309,122.31,122.23,14.43731339]
[1769392428342,4.99983062,122.32,122.23,14.43731339]
[1769392429145,0.05583279,122.29,122.23,14.43731339]
[1769392429755,0.05583279,122.29,122.24,14.43731339]
[1769392431046,0.05583279,122.29,122.24,136.47971339]
[1769392431244,14.2837553,122.33,122.25,14.43731339]
[1769392431451,14.2837553,122.33,122.25,14.49901919]
[1769392431849,14.2837553,122.33,122.25,14.43731339]
[1769392432456,4.99983062,122.32,122.25,14.43731339]
[1769392432755,19.28358592,122.32,122.28,0.05614287]
[1769392432961,0.05322662,122.3,122.25,14.43731339]
[1769392433644,0.05322662,122.3,122.22,14.43731339]
[1769392433846,19.33681254,122.3,122.22,14.43731339]
[1769392434360,19.28358592,122.3,122.22,14.43731339]
[1769392434550,0.05211481,122.27,122.22,14.43731339]
[1769392438256,299.0,122.35,122.22,14.43731339]
[1769392438257,4.99983062,122.47,122.36,114.5576]
[1769392438453,4.99983062,122.47,122.37,14.43731339]
[1769392438659,82.64,122.46,122.38,14.43731339]
[1769392439553,164.22,122.45,122.39,14.43731339]
[1769392439753,166.0,122.44,122.39,14.43731339]
[1769392439961,4.99983062,122.5,122.41,0.05276307]
[1769392440160,10.07291933,122.48,122.41,0.05276307]
[1769392440562,214.31222991,122.47,122.39,136.32921339]
[1769392440762,214.31222991,122.47,122.39,14.43731339]
[1769392440959,258.08,122.46,122.43,0.05568114]
[1769392441158,10.11222991,122.47,122.43,0.05568114]
[1769392441656,65.28,122.46,122.43,0.05568114]
[1769392442254,75.37526817,122.46,122.36,14.43731339]
[1769392442563,153.84,122.45,122.36,14.43731339]
[1769392442958,240.18,122.44,122.36,14.43731339]
[1769392443462,119.46663062,122.46,122.33,141.23973039]
[1769392443663,258.28,122.45,122.34,14.29319977]
[1769392444063,0.05301039,122.41,122.35,14.29319977]
[1769392444266,4.99983062,122.49,122.38,14.29319977]
[1769392444564,273.02591464,122.48,122.38,14.29319977]
[1769392444963,258.38,122.47,122.38,14.29319977]
[1769392445162,258.44,122.46,122.38,14.29319977]
[1769392445367,14.64591464,122.48,122.38,14.29319977]
[1769392445564,96.56,122.47,122.38,14.29319977]
[1769392445968,189.42,122.46,122.38,14.29319977]
[1769392446466,201.69591464,122.46,122.38,14.29319977]
[1769392446866,14.64591464,122.46,122.38,14.29319977]
[1769392447070,96.36,122.45,122.38,14.29319977]
[1769392447564,14.64591464,122.46,122.4,0.05478972]
[1769392447869,196.82,122.45,122.4,0.05478972]
[1769392448569,258.88,122.44,122.4,0.05478972]
[1769392449173,14.64591464,122.46,122.4,0.05478972]
[1769392449368,258.94,122.43,122.4,0.05478972]
[1769392450269,14.64591464,122.46,122.4,0.05478972]
[1769392450469,259.36,122.45,122.4,0.05478972]
[1769392450671,274.00591464,122.45,122.4,0.05478972]
[1769392450862,14.64591464,122.45,122.4,0.05478972]
[1769392451064,259.5,122.44,122.4,0.05478972]
[1769392451759,14.69827741,122.43,122.35,14.29319977]
[1769392452074,14.64591464,122.42,122.33,21.65939977]
[1769392452272,14.64591464,122.41,122.33,14.29319977]
[1769392452970,0.05487376,122.38,122.33,14.29319977]
[1769392453171,0.05487376,122.38,122.31,21.66059977]
[1769392453368,260.26,122.37,122.31,21.66059977]
[1769392453575,0.05487376,122.38,122.31,14.29319977]
[1769392453766,14.7007884,122.38,122.31,14.29319977]
[1769392453961,111.56,122.37,122.31,14.29319977]
[1769392454368,0.06073988,122.36,122.31,14.29319977]
[1769392454875,19.64574526,122.41,122.32,14.29319977]
[1769392454876,21.5387043,122.35,122.32,14.29319977]
[1769392455062,113.26,122.36,122.32,14.34712343]
[1769392455266,60.801,122.36,122.32,14.34712343]
[1769392455466,20.0364,122.36,122.32,14.29319977]
[1769392455867,111.64,122.37,122.32,14.29319977]
[1769392456171,207.3,122.37,122.33,0.05552406]
[1769392456470,14.64591464,122.41,122.33,0.05552406]
[1769392456872,29.23615881,122.39,122.33,0.05552406]
[1769392457073,29.23615881,122.39,122.28,114.6338]
[1769392457278,29.23615881,122.39,122.28,122.0028]
[1769392457279,29.23615881,122.37,122.28,122.0028]
[1769392457875,115.86,122.36,122.32,0.05176234]
[1769392458778,232.42,122.35,122.32,0.05176234]
[1769392459978,232.42,122.35,122.17,63.79997252]
[1769392459979,29.23615881,122.34,122.17,63.79997252]
[1769392460174,114.6463,122.27,122.15,40.05950029]
[1769392460476,4.99983062,122.28,122.16,154.80380029]
[1769392460671,4.99983062,122.28,122.14,7.3776]
[1769392460672,114.6553,122.26,122.14,154.82240029]
[1769392460866,24.39384935,122.29,122.14,154.82200029]
[1769392460867,114.6509,122.27,122.14,154.82200029]
[1769392461071,122.0146,122.27,122.16,40.05950029]
[1769392461269,222.0261,122.27,122.17,40.05950029]
[1769392461582,0.06021637,122.22,122.14,40.05950029]
[1769392462080,0.06021637,122.22,122.14,154.82300029]
[1769392462381,127.02073062,122.27,122.16,40.05950029]
[1769392462580,223.42073062,122.27,122.16,40.05950029]
[1769392462783,218.4209,122.27,122.16,40.05950029]
[1769392462973,96.4,122.27,122.16,40.05950029]
[1769392463177,114.688,122.23,122.11,40.03322213]
[1769392463376,4.99983062,122.21,122.11,40.03322213]
[1769392463574,119.70593062,122.21,122.11,40.03322213]
[1769392463880,114.7147,122.2,122.11,40.03322213]
[1769392464076,235.7347,122.2,122.11,40.03322213]
[1769392464275,121.02,122.2,122.11,40.03322213]
[1769392464477,235.7324,122.2,122.11,40.03322213]
[1769392464872,114.7124,122.2,122.11,40.03322213]
[1769392465074,117.82,122.2,122.11,40.03322213]
[1769392465281,119.67783062,122.24,122.11,40.03322213]
[1769392465474,219.6045,122.23,122.11,40.03322213]
[1769392465680,114.6938,122.22,122.11,40.03322213]
[1769392466074,104.92,122.23,122.11,40.03322213]
[1769392466273,196.86,122.22,122.11,40.03322213]
[1769392467583,263.7,122.21,122.11,40.03322213]
[1769392468273,122.055,122.23,122.11,40.03322213]
[1769392468479,111.12,122.22,122.11,40.03322213]
[1769392468782,122.055,122.23,122.11,40.03322213]
[1769392468983,111.06,122.22,122.11,40.03322213]
[1769392469483,190.54,122.21,122.11,40.03322213]
[1769392471284,114.722,122.19,122.08,40.03322213]
[1769392471582,119.73053062,122.18,122.08,40.03322213]
[1769392471987,264.08,122.17,122.08,40.03322213]
[1769392472178,119.73053062,122.18,122.08,40.03322213]
[1769392472377,119.71483062,122.2,122.08,40.03322213]
[1769392472685,104.46,122.19,122.08,40.03322213]
[1769392473090,226.5562,122.19,122.08,40.03322213]
[1769392473387,114.7405,122.17,122.08,40.03322213]
[1769392474382,127.12473062,122.16,122.08,40.03322213]
[1769392474681,207.54,122.15,122.08,40.03322213]
[1769392475886,7.377,122.16,122.08,40.03322213]
[1769392476190,264.64,122.15,122.08,40.03322213]
[1769392476983,7.3755,122.18,122.08,47.41452213]
[1769392477183,7.3755,122.18,122.1,0.05402346]
[1769392477588,7.3755,122.18,122.08,47.41452213]
[1769392477984,0.05341579,122.15,122.08,47.41452213]
[1769392478191,0.05341579,122.15,122.12,0.05595792]
[1769392486098,0.05341579,122.15,122.07,40.03322213]
[1769392486494,119.75963497,122.17,122.07,40.03322213]
[1769392486700,7.3775,122.15,122.07,40.03322213]
[1769392487000,119.75963497,122.17,122.07,40.03322213]
[1769392487402,7.3768,122.16,122.07,40.03322213]
[1769392487599,0.05796453,122.13,122.07,40.03322213]
[1769392488590,93.72,122.16,122.07,40.03322213]
[1769392489103,7.3756,122.18,122.1,40.00423987]
[1769392490096,7.3756,122.18,122.13,0.05533133]
[1769392491299,0.05414759,122.17,122.13,0.05533133]
[1769392495510,12.39633497,122.16,122.07,40.03190553]
[1769392496513,114.7566,122.15,122.07,40.03190553]
[1769392496910,0.05405663,122.13,122.07,40.03190553]
[1769392497309,269.25405663,122.13,122.07,40.03190553]
[1769392498205,269.48,122.17,122.07,40.03190553]
[1769392498406,276.9356,122.18,122.09,0.05246765]
[1769392498702,7.3756,122.18,122.1,40.03190553]
[1769392498907,277.0156,122.18,122.1,40.03190553]
[1769392499410,7.3744,122.2,122.1,40.03190553]
[1769392499607,3.62376029,122.21,122.1,40.03190553]
[1769392499808,94.18,122.2,122.13,40.09292551]
[1769392500114,199.0,122.2,122.13,40.09292551]
[1769392500316,7.3733,122.22,122.13,40.03190553]
[1769392500615,224.69893497,122.26,122.14,40.00483243]
[1769392500809,224.69893497,122.26,122.15,40.00483243]
[1769392500810,218.00930175,122.25,122.15,40.00483243]
[1769392501113,3.62930175,122.24,122.15,47.38173243]
[1769392501305,3.62930175,122.24,122.19,0.05864189]
[1769392501509,3.62930175,122.24,122.15,40.00483243]
[1769392501510,329.0464,122.25,122.15,40.00483243]
[1769392501719,3.59346996,122.24,122.15,40.00483243]
[1769392501911,273.83346996,122.24,122.15,40.00483243]
[1769392502117,7.3699,122.27,122.17,40.00483243]
[1769392502318,3.59329062,122.26,122.17,40.00483243]
[1769392502514,7.3699,122.27,122.17,40.00483243]
[1769392502815,3.59864238,122.26,122.18,40.00483243]
[1769392503013,7.3699,122.27,122.18,40.00483243]
[1769392503315,3.60458179,122.26,122.18,40.00483243]
[1769392503514,7.3699,122.27,122.18,40.00483243]
[1769392503716,3.60458179,122.26,122.18,40.00483243]
[1769392503918,7.3699,122.27,122.18,40.00483243]
[1769392504106,3.60455429,122.26,122.18,40.00483243]
[1769392504311,3.61196335,122.25,122.18,40.00483243]
[1769392504619,7.3699,122.27,122.18,40.00483243]